bitfinex-derivatives/quotes_ETHF0:USTF0_20250421
["timestamp","ask_amount","ask_price","bid_price","bid_amount"]
[1745255974113,0.00945476,1588.4,1588.3,6.25905]
[1745255974810,0.00945476,1588.4,1588.3,42.05905]
[1745255975113,0.00945476,1588.4,1588.3,47.05905]
[1745255975510,15.22226476,1588.4,1588.2,0.77925475]
[1745255975717,6.0564,1588.3,1588.2,0.77925475]
[1745255975906,12.90184161,1588.3,1588.2,0.77925475]
[1745255976107,17.2024,1588.3,1588.1,0.00945476]
[1745255976411,3.2078,1588.2,1588.1,0.00945476]
[1745255976615,8.8645,1588.2,1588.1,0.00945476]
[1745255977013,3.2078,1588.2,1588.1,1.26866476]
[1745255977314,3.21725476,1588.4,1588.3,1.25905]
[1745255978117,0.00945476,1588.4,1588.3,1.25905]
[1745255978417,4.76e-06,1588.4,1588.3,6.25905]
[1745255982312,4.76e-06,1588.4,1588.3,47.05905]
[1745255983015,1.25905,1588.3,1588.2,6.146]
[1745255983217,10.61283476,1588.4,1588.1,0.00945476]
[1745255983518,1.25907,1588.3,1588.1,0.00945476]
[1745255983708,9.35380476,1588.4,1588.1,1.26865476]
[1745255983906,15.21260476,1588.4,1588.1,0.00945476]
[1745255984112,9.06660476,1588.4,1588.1,0.00945476]
[1745255984617,9.06660476,1588.4,1588.1,1.26864476]
[1745255985018,3.20780476,1588.4,1588.3,1.25905]
[1745255985219,4.76e-06,1588.4,1588.3,1.25905]
[1745255985418,4.76e-06,1588.4,1588.3,9.46685]
[1745255985814,4.76e-06,1588.4,1588.3,1.25905]
[1745255986021,4.76e-06,1588.4,1588.3,3.2078]
[1745255986224,4.76e-06,1588.4,1588.1,0.00945476]
[1745255986225,1.25905,1588.3,1588.2,6.146]
[1745255986418,6.28025,1588.3,1588.2,6.146]
[1745255986616,11.28025,1588.3,1588.2,6.146]
[1745255987020,1.25913,1588.2,1588.1,4.76e-06]
[1745255987326,9.59769282,1588.2,1588.1,4.76e-06]
[1745255987521,21.73956831,1588.2,1588.1,4.76e-06]
[1745255987717,3.14885,1587.7,1587.3,7.21685]
[1745255987925,4.46757,1587.4,1587.3,7.21685]
[1745255988325,15.8532,1587.6,1587.3,7.21685]
[1745255988528,15.8532,1587.6,1587.4,1.25971]
[1745255988529,3.2078,1587.5,1587.4,1.25971]
[1745255988724,1.25977,1587.4,1587.3,7.21685]
[1745255988922,6.48337,1587.4,1587.3,7.22630476]
[1745255989125,17.62937,1587.4,1587.3,7.22630476]
[1745255990220,1.26006,1587.1,1586.6,8.26067]
[1745255990421,3.2078,1586.9,1586.7,5.1097]
[1745255990723,1.2604,1586.6,1586.5,8.32345888]
[1745255990925,1.2604,1586.6,1586.0,31.0628703]
[1745255990926,1.2608,1586.1,1586.0,24.7029103]
[1745255991134,10.5366,1586.1,1586.0,10.63284175]
[1745255991323,22.35492354,1586.1,1586.0,10.63284175]
[1745255991625,15.5366,1586.1,1586.0,10.63284175]
[1745255991833,15.4366,1586.1,1586.0,10.63284175]
[1745255992230,28.45962658,1586.1,1586.0,10.63284175]
[1745255992534,1.26088,1586.0,1585.9,0.00945476]
[1745255993028,6.26088,1586.0,1585.9,0.00945476]
[1745255993227,19.05587532,1586.0,1585.9,0.00945476]
[1745255994131,6.146,1586.0,1585.9,0.00945476]
[1745255994327,7.40688,1586.0,1585.9,0.00945476]
[1745255994730,6.146,1586.0,1585.9,0.00945476]
[1745255995126,10.53663,1586.1,1585.9,5.41995476]
[1745255995321,9.2758,1586.1,1585.9,6.68090476]
[1745255995726,3.2078,1586.1,1585.9,5.41995476]
[1745255995929,0.00945476,1586.2,1586.1,1.2608]
[1745255996433,0.00945476,1586.2,1586.1,6.2608]
[1745255997034,0.00945476,1586.2,1586.1,5.0]
[1745255997225,4.47799476,1586.2,1586.0,6.146]
[1745255997426,4.47799476,1586.2,1586.1,5.4105]
[1745255999337,3.21725476,1586.2,1586.1,5.4105]
[1745255999533,0.00945476,1586.2,1586.1,6.6713]
[1745255999834,0.00945476,1586.2,1586.1,5.4105]
[1745256000036,1.27017476,1586.2,1586.1,5.4105]
[1745256000232,4.47797476,1586.2,1586.1,5.4105]
[1745256001238,3.21725476,1586.2,1586.1,5.4105]
[1745256001539,4.46832,1586.5,1586.1,13.6183]
[1745256001747,4.46832,1586.5,1586.2,1.26066]
[1745256001953,3.2078,1586.5,1586.3,1.26061]
[1745256002254,3.2078,1586.5,1586.4,5.1424]
[1745256002751,0.00945476,1586.6,1586.4,5.1424]
[1745256002948,9.2818,1586.5,1586.1,3.2078]
[1745256003154,1.26057,1586.4,1586.1,1.26078]
[1745256003355,9.2818,1586.5,1586.2,6.4031]
[1745256003559,10.5423,1586.5,1586.2,6.4031]
[1745256003851,4.4683,1586.5,1586.2,6.4031]
[1745256004047,4.4683,1586.5,1586.3,1.26063]
[1745256004239,4.4683,1586.5,1586.4,5.1327]
[1745256004652,3.2078,1586.5,1586.4,5.1327]
[1745256004954,1.26991476,1586.6,1586.4,5.1327]
[1745256004955,1.26991476,1586.6,1586.4,6.39324]
[1745256005142,1.26991476,1586.6,1586.5,1.26048]
[1745256005143,0.00021621,1586.6,1586.5,1.26048]
[1745256005652,0.00021621,1586.6,1586.5,6.26048]
[1745256005951,0.00021621,1586.6,1586.5,11.39318]
[1745256006349,1.26061621,1586.6,1586.5,5.1327]
[1745256006748,1.26066,1586.3,1586.1,3.2078]
[1745256006951,1.26066,1586.3,1586.2,5.12346145]
[1745256008046,1.26088,1586.0,1585.9,0.00945476]
[1745256008854,7.33588,1586.0,1585.9,0.00945476]
[1745256010054,9.2828,1586.3,1585.9,0.00945476]
[1745256010352,1.26072,1586.2,1585.9,0.00945476]
[1745256010549,1.26083,1586.1,1585.9,5.42225476]
[1745256010749,3.2078,1586.2,1585.9,5.42225476]
[1745256010952,1.26084,1586.1,1585.9,5.42225476]
[1745256011349,1.26088,1586.0,1585.9,5.42225476]
[1745256011656,4.46868,1586.0,1585.9,5.42225476]
[1745256012053,1.26083,1586.1,1585.9,5.42225476]
[1745256012558,1.26081,1586.1,1585.9,6.68316476]
[1745256012954,1.26081,1586.1,1585.9,5.42225476]
[1745256013154,4.46868,1586.0,1585.9,5.42225476]
[1745256014650,10.54468,1586.0,1585.9,5.42225476]
[1745256014850,15.54468,1586.0,1585.9,1e-08]
[1745256015147,21.69068,1586.0,1585.9,1e-08]
[1745256019554,1.26096,1585.9,1585.8,1e-08]
[1745256020061,12.84050054,1585.9,1585.8,1e-08]
[1745256020354,18.23507901,1585.9,1585.0,3.2078]
[1745256020555,3.2078,1585.1,1584.4,14.88971]
[1745256020751,0.10963545,1585.8,1583.6,63.7689]
[1745256020752,3.2078,1585.3,1585.0,3.2078]
[1745256020957,4.46913,1585.5,1585.3,0.00945476]
[1745256021158,1.26135,1585.4,1585.3,5.38085476]
[1745256021662,18.94539807,1585.4,1585.3,4.76e-06]
[1745256021857,1.26175,1584.9,1584.8,4.01749476]
[1745256022053,3.2078,1584.9,1584.8,4.01749476]
[1745256022364,1.26168,1585.0,1584.8,12.22529476]
[1745256022552,6.146,1585.1,1584.6,10.40274]
[1745256022751,1.26176,1584.9,1584.6,4.46973]
[1745256022951,1.26173,1585.0,1584.7,1.26189]
[1745256023152,3.2078,1584.8,1584.6,0.00945476]
[1745256023360,1.26191,1584.7,1584.6,0.00945476]
[1745256025067,1.26191,1584.7,1584.6,5.12795476]
[1745256025268,7.40791,1584.7,1584.6,5.12795476]
[1745256025561,6.146,1584.7,1584.6,5.12795476]
[1745256025763,7.40791,1584.7,1584.6,5.12795476]
[1745256025961,6.146,1584.7,1584.6,5.12795476]
[1745256026163,1.26191,1584.7,1584.6,5.12795476]
[1745256027762,2.61631,1584.7,1584.6,5.12795476]
[1745256028163,8.76231,1584.7,1584.6,0.00945476]
[1745256029067,7.40791,1584.7,1584.6,0.00945476]
[1745256029363,3.2078,1585.0,1584.9,1.26175]
[1745256029569,3.2078,1585.0,1584.6,6.27144476]
[1745256029570,1.26168,1585.0,1584.8,1.26177]
[1745256029769,1.26164,1585.1,1584.9,5.0662]
[1745256030069,3.21725476,1585.6,1585.2,1.26146]
[1745256030257,1.26137,1585.4,1585.3,5.0662]
[1745256030461,4.46917,1585.4,1585.3,5.0662]
[1745256030974,1.26167,1585.0,1584.9,6.146]
[1745256031166,1.26167,1585.0,1584.8,1.26181]
[1745256031366,3.2078,1585.0,1584.7,11.55056]
[1745256031562,3.2078,1585.0,1584.7,11.55054]
[1745256031773,1.26178,1584.9,1584.7,10.2887]
[1745256032468,1.26178,1584.9,1584.8,5.0378]
[1745256033273,7.19678,1584.9,1584.8,5.0378]
[1745256033571,1.26191,1584.7,1584.6,0.00945476]
[1745256033766,4.46971,1584.7,1584.6,5.04725476]
[1745256034166,10.61571,1584.7,1584.6,5.04725476]
[1745256034873,10.61571,1584.7,1584.6,0.00945476]
[1745256037169,10.61571,1584.7,1584.6,1e-08]
[1745256037369,11.96901,1584.7,1584.6,1e-08]
[1745256037674,16.96901,1584.7,1584.6,1e-08]
[1745256037975,3.15499,1584.6,1583.9,5.3528]
[1745256038173,3.2078,1584.1,1584.0,1.26247]
[1745256038373,3.2078,1584.1,1583.9,11.85088]
[1745256038681,3.2078,1584.1,1583.9,10.5884]
[1745256038682,1.26247,1584.0,1583.9,10.5884]
[1745256039068,4.47025,1584.1,1583.9,11.85089]
[1745256039268,1.26255,1583.9,1583.8,0.00945476]
[1745256039476,1.26287,1583.6,1583.4,11.90963]
[1745256039674,4.47067,1583.6,1583.4,11.90963]
[1745256040068,1.26287,1583.5,1583.4,10.6467]
[1745256040472,1.26287,1583.5,1583.4,5.2356]
[1745256040678,1.26295,1583.4,1583.3,0.00945476]
[1745256040878,4.47075,1583.4,1583.3,0.00945476]
[1745256041175,10.61675,1583.4,1583.3,0.00945476]
[1745256042478,6.146,1583.4,1583.3,0.00945476]
[1745256042874,6.146,1583.4,1583.3,1.27248476]
[1745256043077,10.61675,1583.4,1583.3,0.00945476]
[1745256043281,4.47075,1583.4,1583.3,0.00945476]
[1745256044482,10.40975,1583.4,1583.3,0.00945476]
[1745256045280,16.55575,1583.4,1583.3,0.00945476]
[1745256045680,21.55575,1583.4,1583.3,4.76e-06]
[1745256046384,33.47703048,1583.4,1583.3,4.76e-06]
[1745256046681,21.67575,1583.4,1583.3,4.76e-06]
[1745256046889,16.55575,1583.4,1583.3,4.76e-06]
[1745256048486,21.55575,1583.4,1583.3,4.76e-06]
[1745256049080,16.55575,1583.4,1583.3,4.76e-06]
[1745256049978,16.55575,1583.4,1583.3,5.06850476]
[1745256050179,10.40975,1583.4,1583.3,5.06850476]
[1745256051088,4.47075,1583.4,1583.3,5.06850476]
[1745256051386,8.9778,1583.8,1583.5,1.26283]
[1745256051586,8.9778,1583.8,1583.6,5.0685]
[1745256051587,10.24046,1583.8,1583.6,5.0685]
[1745256051784,1.26271,1583.7,1583.6,5.0677]
[1745256054478,6.60251,1583.7,1583.6,5.0677]
[1745256055085,1.26295,1583.4,1583.3,4.76e-06]
[1745256055780,6.44835,1583.4,1583.3,4.76e-06]
[1745256056183,17.59435,1583.4,1583.3,4.76e-06]
[1745256056984,12.59435,1583.4,1583.3,4.76e-06]
[1745256058485,7.40895,1583.4,1583.3,4.76e-06]
[1745256058790,12.63255,1583.4,1583.3,4.76e-06]
[1745256059687,7.40895,1583.4,1583.3,4.76e-06]
[1745256060087,1.26311,1583.2,1583.1,5.1196]
[1745256060284,1.26311,1583.2,1583.0,1.26321]
[1745256060484,1.26311,1583.2,1583.0,6.26321]
[1745256060681,3.2078,1583.5,1583.0,11.36595]
[1745256060886,1.26275,1583.7,1583.4,1.26295]
[1745256061087,9.91386252,1583.9,1583.5,5.4382]
[1745256061288,0.00945476,1583.7,1583.6,4.47059]
[1745256061482,9.91386252,1583.9,1583.6,5.0296]
[1745256061686,1.26271,1583.7,1583.6,5.0296]
[1745256062188,1.26279,1583.6,1583.5,5.4382]
[1745256063780,0.00945476,1583.7,1583.5,10.4382]
[1745256063982,0.00945476,1583.7,1583.6,4.47059]
[1745256064491,0.00945476,1583.7,1583.6,9.47059]
[1745256065797,4.47033,1584.0,1583.8,1.26262]
[1745256065994,3.2078,1584.0,1583.7,5.0571]
[1745256066192,1.26263,1583.8,1583.7,5.0571]
[1745256066388,1.26259,1583.9,1583.7,6.31981]
[1745256066795,1.26252,1584.0,1583.8,1.26262]
[1745256066993,1.26252,1584.0,1583.7,8.2649]
[1745256066994,1.26259,1583.9,1583.7,9.52759]
[1745256067192,3.2078,1583.8,1583.5,8.646]
[1745256067499,1.26272,1583.7,1583.5,9.90883]
[1745256067687,3.2078,1583.8,1583.5,9.90883]
[1745256067893,4.47049,1583.8,1583.6,1.26279]
[1745256068489,8.55665476,1584.0,1583.5,8.646]
[1745256068699,1.26255,1583.9,1583.6,1.26279]
[1745256069001,1.26255,1583.9,1583.7,1.26269]
[1745256069200,1.26263,1583.8,1583.6,1.26273]
[1745256069400,3.2078,1583.8,1583.7,1.26271]
[1745256069603,1.26263,1583.9,1583.7,1.26269]
[1745256070093,1.26258,1583.9,1583.7,1.26264]
[1745256070597,0.00945476,1584.0,1583.9,1.26255]
[1745256071794,0.00945476,1584.0,1583.8,1.26257]
[1745256071993,4.47977476,1584.0,1583.8,1.26257]
[1745256072295,3.21725476,1584.0,1583.9,1.26255]
[1745256072696,0.00945476,1584.0,1583.9,6.26255]
[1745256073096,0.00945476,1584.0,1583.9,9.47035]
[1745256074399,7.17334501,1584.3,1584.2,1.26231]
[1745256074602,9.73554501,1584.4,1584.3,1.26223]
[1745256074988,3.96554501,1584.4,1584.3,1.26223]
[1745256075403,7.17334501,1584.4,1584.0,8.5503]
[1745256075606,1.26229,1584.3,1584.1,1.26237]
[1745256076413,1.26229,1584.3,1584.2,1.26231]
[1745256076705,1.26233,1584.2,1584.0,6.60492]
[1745256077291,1.26233,1584.2,1584.1,1.26239]
[1745256077496,14.20453501,1584.4,1584.2,1.26226]
[1745256077695,9.73454501,1584.4,1584.3,1.26223]
[1745256077991,10.99672501,1584.4,1584.2,1.26224]
[1745256078189,10.99672501,1584.4,1584.3,5.4176]
[1745256078697,7.03118,1584.4,1584.3,5.4176]
[1745256078897,1.26231,1584.2,1584.1,8.3825]
[1745256079205,1.26231,1584.2,1584.1,5.4176]
[1745256079703,3.2078,1584.2,1584.1,6.67999]
[1745256079899,1.26227,1584.3,1584.1,6.67999]
[1745256080205,1.26227,1584.3,1584.2,6.32401]
[1745256080515,1.26227,1584.3,1584.2,5.0617]
[1745256080708,6.29697,1584.3,1584.2,5.0617]
[1745256081093,1.26227,1584.3,1584.2,6.32401]
[1745256081296,7.40823,1584.3,1584.2,6.32401]
[1745256081805,15.38917505,1584.3,1584.2,6.32401]
[1745256082205,7.98094505,1584.3,1584.0,8.49442069]
[1745256082507,7.98094505,1584.3,1584.2,1.26224]
[1745256082692,16.96008346,1584.4,1584.3,1.26223]
[1745256082892,16.96008346,1584.4,1584.3,40.8]
[1745256083098,18.22223346,1584.4,1584.2,1.26225]
[1745256083303,18.22223346,1584.4,1584.0,17.41659069]
[1745256083304,4.4701,1584.3,1584.1,1.26237]
[1745256083497,8.5244,1584.3,1584.2,42.06231]
[1745256083706,18.22229346,1584.4,1584.3,1.26223]
[1745256083707,20.16788346,1584.4,1584.3,1.26223]
[1745256084007,21.43004346,1584.4,1584.2,1.26224]
[1745256084400,1.26223,1584.3,1584.2,1.26224]
[1745256084599,20.16788346,1584.4,1584.1,40.8]
[1745256084803,6.04577577,1584.3,1584.2,1.26225]
[1745256085504,6.04577577,1584.3,1584.2,6.38325]
[1745256086007,6.04577577,1584.3,1584.2,14.59105]
[1745256086203,6.04577577,1584.3,1584.2,20.73705]
[1745256086508,9.96880129,1584.5,1584.4,1.26215]
[1745256086711,9.96880129,1584.5,1584.4,4.46995]
[1745256087009,9.96880129,1584.5,1584.4,45.26995]
[1745256087412,9.96880129,1584.5,1584.4,50.85035]
[1745256087807,9.96880129,1584.5,1584.4,56.14875]
[1745256088017,9.96880129,1584.5,1584.4,3.2078]
[1745256088311,0.00945476,1584.5,1584.4,1.26215]
[1745256088611,0.00945476,1584.5,1584.4,5.5804]
[1745256088815,1.27152476,1584.5,1584.4,5.5804]
[1745256089006,1.26215,1584.4,1584.3,0.00945476]
[1745256089610,6.66655,1584.4,1584.3,0.00945476]
[1745256089809,3.21725476,1584.5,1584.4,1.26215]
[1745256090011,0.00945476,1584.5,1584.4,6.42695]
[1745256090217,1.27152476,1584.5,1584.4,5.1648]
[1745256090413,6.67592476,1584.5,1584.4,5.1648]
[1745256090612,1.26215,1584.4,1584.3,0.00945476]
[1745256090911,5.4044,1584.4,1584.3,1.27168476]
[1745256091105,6.66655,1584.4,1584.3,0.00945476]
[1745256091906,5.4044,1584.4,1584.3,1.27168476]
[1745256093113,5.09355476,1584.5,1584.4,1.26215]
[1745256093307,0.00945476,1584.5,1584.4,6.66625]
[1745256093514,0.00945476,1584.5,1584.4,9.87405]
[1745256093714,1.27152476,1584.5,1584.4,8.6119]
[1745256094416,0.00945476,1584.5,1584.4,8.6119]
[1745256094611,0.00945476,1584.5,1584.4,9.87405]
[1745256098717,0.00945476,1584.5,1584.4,14.90975]
[1745256107016,0.00945476,1584.5,1584.4,20.28595]
[1745256108316,4.02957275,1584.7,1584.6,1.26199]
[1745256108717,4.02957275,1584.7,1584.6,6.60909]
[1745256109126,4.02957275,1584.7,1584.6,9.81689]
[1745256111524,4.02957275,1584.7,1584.5,1.26202]
[1745256111725,1.26207,1584.5,1584.4,10.5977]
[1745256111919,1.26207,1584.5,1584.4,5.2215]
[1745256112413,6.35267,1584.5,1584.4,5.2215]
[1745256112618,1.26215,1584.4,1584.3,0.00945476]
[1745256112922,6.35275,1584.4,1584.3,0.00945476]
[1745256113225,14.56055,1584.4,1584.3,1e-08]
[1745256113618,9.56055,1584.4,1584.3,1e-08]
[1745256114425,8.2984,1584.4,1584.3,1.26223001]
[1745256114620,5.0906,1584.4,1584.3,1.26223001]
[1745256114820,6.35275,1584.4,1584.3,1e-08]
[1745256115020,5.0906,1584.4,1584.3,1.26223001]
[1745256115222,6.35275,1584.4,1584.3,1e-08]
[1745256115728,3.15623,1584.0,1583.5,1.26281]
[1745256116021,1.26264,1583.8,1583.6,1.26276]
[1745256116217,1.26264,1583.8,1583.6,42.06276]
[1745256116418,6.44444,1583.8,1583.6,42.06276]
[1745256116727,3.2078,1583.7,1583.5,6.51425]
[1745256116930,5.1818,1583.6,1583.5,6.52370476]
[1745256117128,5.1818,1583.6,1583.5,47.32370476]
[1745256117432,11.44459,1583.6,1583.5,0.00945476]
[1745256118322,5.1818,1583.6,1583.5,0.00945476]
[1745256118926,5.1818,1583.6,1583.5,5.58775476]
[1745256119328,7.24294036,1583.7,1583.6,1.26279]
[1745256119522,5.29785036,1583.7,1583.5,6.85055476]
[1745256119721,10.57715036,1583.7,1583.5,6.85055476]
[1745256119925,10.57715036,1583.7,1583.5,6.85056476]
[1745256120128,9.31444036,1583.7,1583.6,1.26279]
[1745256120324,12.52224036,1583.7,1583.5,5.58775476]
[1745256120531,12.52224036,1583.7,1583.6,1.26279]
[1745256121522,4.03514036,1583.7,1583.6,1.26279]
[1745256121723,1.49691614,1583.7,1583.6,6.26279]
[1745256122128,6.14e-06,1583.7,1583.6,11.26699]
[1745256122726,8.07973549,1583.9,1583.6,14.42392]
[1745256122727,8.07028073,1583.8,1583.6,14.42392]
[1745256123029,8.07028073,1583.8,1583.7,15.18181]
[1745256123525,8.07028073,1583.8,1583.7,20.18181]
[1745256124220,8.07028073,1583.8,1583.7,26.32781]
[1745256125128,8.07028073,1583.8,1583.7,21.32781]
[1745256125534,9.33291073,1583.8,1583.7,9.3538]
[1745256125728,1.26279,1583.6,1583.5,0.00945476]
[1745256125921,4.47059,1583.6,1583.5,1e-08]
[1745256126227,9.47059,1583.6,1583.5,1e-08]
[1745256126628,14.74799,1583.6,1583.5,1e-08]
[1745256127230,116.50324121,1583.6,1582.6,8.39929909]
[1745256127427,4.4711,1583.0,1582.6,14.80572909]
[1745256127617,5.2774,1582.9,1582.7,47.2064]
[1745256128022,5.2774,1582.9,1582.8,1.26343]
[1745256128524,0.00945476,1583.0,1582.9,1.26335]
[1745256128727,0.00945476,1583.0,1582.7,45.95235476]
[1745256128923,1.27276476,1583.0,1582.7,47.21582476]
[1745256129123,5.1365,1582.9,1582.7,47.21582476]
[1745256129518,6.39985,1582.9,1582.7,45.95235476]
[1745256130129,5.1365,1582.9,1582.7,47.21584476]
[1745256130333,5.1365,1582.9,1582.8,1.26343]
[1745256130529,0.00945476,1583.0,1582.8,1.26343]
[1745256130830,1.27272476,1583.0,1582.7,42.07290476]
[1745256131026,5.1365,1582.9,1582.7,47.17780476]
[1745256131926,5.1365,1582.9,1582.8,1.26343]
[1745256132329,5.1365,1582.9,1582.7,47.17783476]
[1745256132533,5.1365,1582.9,1582.8,1.26343]
[1745256132725,3.21725476,1583.0,1582.8,1.26343]
[1745256132925,9.77922476,1583.0,1582.9,5.5139]
[1745256133233,9.77922476,1583.0,1582.7,42.07290476]
[1745256133431,9.77922476,1583.0,1582.8,6.77733]
[1745256133730,9.77924476,1583.0,1582.8,5.5139]
[1745256133933,8.51595476,1583.0,1582.8,6.77729]
[1745256134425,9.77922476,1583.0,1582.9,5.5139]
[1745256136132,0.00945476,1583.0,1582.9,6.77725]
[1745256136537,4.48052476,1583.0,1582.9,5.5139]
[1745256136831,1.26343,1582.8,1582.7,0.00945476]
[1745256137035,5.6692,1582.9,1582.7,0.00945476]
[1745256137226,4.47123,1582.8,1582.7,0.00945476]
[1745256137427,4.47123,1582.8,1582.7,5.40975476]
[1745256137731,3.2078,1582.8,1582.7,5.40975476]
[1745256137934,6.93262,1582.9,1582.7,5.40975476]
[1745256138133,10.04953,1582.8,1582.7,5.40975476]
[1745256138433,6.84173,1582.8,1582.7,5.40975476]
[1745256138630,10.04953,1582.8,1582.7,0.00945476]
[1745256139134,16.19553,1582.8,1582.7,0.00945476]
[1745256139627,1.26367,1582.5,1582.4,3.2078]
[1745256139832,3.2078,1582.6,1582.2,10.536]
[1745256140027,3.2078,1582.4,1582.2,5.5726]
[1745256140229,8.7861,1582.6,1582.2,49.53221]
[1745256140433,6.38111,1582.7,1582.5,1.26367]
[1745256140630,6.38111,1582.7,1582.6,5.8482]
[1745256140826,11.94171,1582.7,1582.6,5.8482]
[1745256141030,11.94171,1582.7,1582.5,1.26366]
[1745256141228,1.26359,1582.6,1582.5,7.11186]
[1745256141428,10.03199,1582.6,1582.5,5.8482]
[1745256141631,1.26367,1582.5,1582.4,0.00945476]
[1745256141827,6.82427,1582.5,1582.4,0.00945476]
[1745256142236,12.57927,1582.5,1582.4,0.00945476]
[1745256144127,22.63403,1582.5,1581.9,10.2347]
[1745256144328,1.26407,1582.0,1581.9,6.90744]
[1745256144533,1.26404,1582.1,1581.9,6.90738]
[1745256144732,4.47163,1582.3,1582.2,1.26391]
[1745256144933,15.1088,1582.5,1582.1,3.2078]
[1745256145126,15.1088,1582.5,1582.4,1.26375]
[1745256145331,15.1088,1582.5,1582.1,14.1423]
[1745256145332,4.47114,1583.0,1582.3,3.2078]
[1745256145641,0.00945476,1582.8,1582.5,6.36681]
[1745256145840,0.00945476,1582.8,1582.7,1.26345]
[1745256146538,0.00945476,1582.8,1582.7,6.90675]
[1745256147235,0.00945476,1582.8,1582.7,16.26055]
[1745256147642,0.00945476,1582.8,1582.7,21.26055]
[1745256147942,0.00945476,1582.8,1582.7,16.26055]
[1745256148240,0.00945476,1582.8,1582.7,6.90681]
[1745256149041,0.00945476,1582.8,1582.7,5.6433]
[1745256149235,0.00945476,1582.8,1582.7,6.90681]
[1745256149933,0.00945476,1582.8,1582.7,10.11461]
[1745256150140,11.27808073,1583.4,1583.0,1.26322]
[1745256150341,5.31,1583.3,1583.2,1.26311]
[1745256150536,8.07028073,1583.4,1583.3,1.26303]
[1745256150839,1.26304,1583.3,1583.1,46.1075]
[1745256151041,6.57309,1583.3,1583.2,5.3075]
[1745256151444,6.57311,1583.3,1583.1,46.1075]
[1745256151746,6.57311,1583.3,1583.2,5.3075]
[1745256152044,5.31,1583.3,1583.2,5.3075]
[1745256152638,6.57303,1583.3,1583.2,5.3075]
[1745256153232,1.26313,1583.2,1583.0,47.50839476]
[1745256153447,5.8136,1583.2,1583.1,1.26319]
[1745256153640,3.21725476,1583.4,1583.0,51.78875476]
[1745256153845,5.8136,1583.3,1583.2,1.2631]
[1745256154142,7.07666,1583.3,1583.1,1.26316]
[1745256154338,7.07666,1583.3,1583.2,5.5436]
[1745256155447,7.07666,1583.3,1583.1,1.26316]
[1745256155641,7.07666,1583.3,1583.1,6.80676]
[1745256155842,1.26319,1583.1,1583.0,0.00945476]
[1745256156342,1.26343,1582.8,1582.7,3.2078]
[1745256156544,6.31661,1583.0,1582.3,3.15946]
[1745256156545,1.26351,1582.7,1582.6,5.6755]
[1745256156736,1.26361,1582.6,1582.4,6.93917]
[1745256156942,4.47147,1582.5,1582.4,5.6755]
[1745256157143,4.47147,1582.5,1582.3,1.26378]
[1745256157444,5.3338,1582.4,1582.3,6.93928]
[1745256157644,5.3338,1582.4,1582.2,0.0060823]
[1745256157846,3.2078,1582.3,1582.2,5.6815823]
[1745256158148,4.47163,1582.3,1582.2,5.6815823]
[1745256158444,16.70121,1582.3,1581.8,42.06418]
[1745256158647,3.2078,1581.9,1581.5,6.36895]
[1745256158844,3.2078,1581.9,1581.7,1.26427]
[1745256159041,3.2078,1581.9,1581.8,5.4229]
[1745256159237,1.26424,1581.8,1581.5,8.48]
[1745256159441,5.6425,1581.8,1581.6,5.4229]
[1745256159645,3.2078,1581.7,1581.6,5.4229]
[1745256159847,3.2078,1581.7,1581.5,40.8]
[1745256160246,1.26439,1581.6,1581.4,5.4229]
[1745256160451,1.26439,1581.6,1581.4,6.68744]
[1745256160647,3.2078,1581.7,1581.4,5.4229]
[1745256160856,1.26447,1581.5,1581.4,5.4229]
[1745256161148,1.26447,1581.5,1580.8,3.16249]
[1745256161149,3.2078,1581.5,1581.0,8.48]
[1745256161342,1.26456,1581.4,1581.1,1.26473]
[1745256161539,1.26468,1581.3,1581.0,9.7448]
[1745256161747,3.2078,1581.2,1581.0,5.2722]
[1745256161943,1.26474,1581.2,1581.0,5.2722]
[1745256162445,3.2078,1581.2,1580.8,3.2078]
[1745256162643,3.2078,1581.4,1581.2,1.26464]
[1745256162843,4.47235,1581.4,1581.1,1.26473]
[1745256163146,0.00948497,1581.5,1581.1,3.2078]
[1745256163351,0.00948497,1581.5,1581.4,1.26455]
[1745256163549,10.7287,1582.3,1582.0,1.26406]
[1745256163746,10.7287,1582.3,1581.4,5.758]
[1745256163747,5.97616199,1582.1,1581.9,3.2078]
[1745256164352,5.97616199,1582.1,1582.0,5.2838]
[1745256165145,7.24015199,1582.1,1582.0,5.2838]
[1745256165346,5.97616199,1582.1,1582.0,5.2838]
[1745256165547,1.26407,1582.0,1581.9,0.00948497]
[1745256165855,10.27197,1582.0,1581.9,5.43518497]
[1745256166047,9.0079,1582.0,1581.7,3.2078]
[1745256166248,1.26423,1581.8,1581.7,8.6335]
[1745256166647,1.26439,1581.6,1581.5,50.8328]
[1745256166956,1.26433,1581.7,1581.5,56.2585]
[1745256167253,1.26439,1581.6,1581.5,51.2063]
[1745256168054,1.26439,1581.6,1581.5,5.4257]
[1745256168451,14.7659,1581.8,1581.5,6.69016]
[1745256168656,16.03015,1581.8,1581.5,6.69016]
[1745256168959,7.022,1582.1,1581.9,1.2641]
[1745256169152,7.022,1582.1,1581.6,3.16084]
[1745256169153,5.758,1582.1,1582.0,5.5191]
[1745256169360,8.54508497,1582.2,1582.1,1.26399]
[1745256169361,0.00948497,1582.2,1582.1,1.26399]
[1745256170060,8.21728497,1582.2,1581.7,8.4657]
[1745256170256,1.26415,1581.9,1581.7,9.99116]
[1745256170562,3.2078,1582.0,1581.7,8.7269]
[1745256170756,3.2078,1582.0,1581.9,1.26415]
[1745256171054,6.15548497,1582.2,1582.0,1.26405]
[1745256171256,1.264,1582.1,1581.9,1.26409]
[1745256171454,3.2078,1582.0,1581.7,6.146]
[1745256171758,7.01525,1581.9,1581.7,13.14797]
[1745256171951,5.7511,1581.9,1581.7,13.14793]
[1745256172147,5.7511,1581.9,1581.7,7.00193]
[1745256172359,7.012,1582.1,1581.9,1.26415]
[1745256172555,11.4991,1582.1,1582.0,5.7377]
[1745256172853,12.76309,1582.1,1582.0,5.7377]